[Event "Titled Tuesday Blitz August 15 Late 2023"]
[White "Xiong, Jeffery"]
[Black "Barp, Alberto"]
[WhiteFideId "2047640"]
[BlackFideId "872555"]
[WhiteElo "2975"]
[BlackElo "2718"]
[Result "1-0"]
[Round "3"]
[TimeControl "180+1"]
[Date "2023.08.15"]
[WhiteClock "0:00:55"]
[BlackClock "0:01:14"]
[Board "15"]

1. e4 {[%clk 0:03:00]}  e5 {[%clk 0:02:53]} 2. Nf3 {[%clk 0:03:01]}  Nc6 {[%clk 0:02:52]} 3. Nc3 {[%clk 0:03:01]}  Nf6 {[%clk 0:02:52]} 4. d4 {[%clk 0:03:02]}  exd4 {[%clk 0:02:52]} 5. Nxd4 {[%clk 0:03:03]}  Bb4 {[%clk 0:02:52]} 6. Nxc6 {[%clk 0:03:04]}  bxc6 {[%clk 0:02:52]} 7. Bd3 {[%clk 0:03:04]}  d5 {[%clk 0:02:52]} 8. exd5 {[%clk 0:03:05]}  O-O {[%clk 0:02:53]} 9. O-O {[%clk 0:03:06]}  Bg4 {[%clk 0:02:53]} 10. f3 {[%clk 0:03:06]}  Bh5 {[%clk 0:02:52]} 11. dxc6 {[%clk 0:03:07]}  Qd4+ {[%clk 0:02:50]} 12. Kh1 {[%clk 0:03:07]}  Bxc3 {[%clk 0:02:50]} 13. bxc3 {[%clk 0:03:08]}  Qxc3 {[%clk 0:02:51]} 14. Rb1 {[%clk 0:03:09]}  Qxc6 {[%clk 0:02:47]} 15. Rb3 {[%clk 0:03:08]}  Rad8 {[%clk 0:02:35]} 16. Bb2 {[%clk 0:03:08]}  Bg6 {[%clk 0:02:35]} 17. Qa1 {[%clk 0:03:09]}  Bxd3 {[%clk 0:02:30]} 18. cxd3 {[%clk 0:03:09]}  Rd6 {[%clk 0:02:28]} 19. Ba3 {[%clk 0:03:08]}  Rfd8 {[%clk 0:02:20]} 20. Rc1 {[%clk 0:03:02]}  Qd7 {[%clk 0:02:13]} 21. Bxd6 {[%clk 0:03:02]}  Qxd6 {[%clk 0:02:14]} 22. Rb7 {[%clk 0:02:59]}  Nd5 {[%clk 0:02:13]} 23. Rxa7 {[%clk 0:02:56]}  Qb6 {[%clk 0:02:12]} 24. Ra4 {[%clk 0:02:49]}  Qf2 {[%clk 0:02:11]} 25. Qd4 {[%clk 0:02:46]}  Qd2 {[%clk 0:02:05]} 26. Rac4 {[%clk 0:02:34]}  Rd6 {[%clk 0:01:58]} 27. R4c2 {[%clk 0:02:30]}  Qg5 {[%clk 0:01:57]} 28. h4 {[%clk 0:02:21]}  Qh6 {[%clk 0:01:55]} 29. Qg4 {[%clk 0:02:09]}  f5 {[%clk 0:01:46]} 30. Qg5 {[%clk 0:01:56]}  Qe6 {[%clk 0:01:46]} 31. d4 {[%clk 0:01:39]}  h6 {[%clk 0:01:45]} 32. Qg3 {[%clk 0:01:39]}  Qf6 {[%clk 0:01:27]} 33. Rd2 {[%clk 0:01:11]}  f4 {[%clk 0:01:23]} 34. Qh3 {[%clk 0:01:10]}  Ne3 {[%clk 0:01:17]} 35. Rxc7 {[%clk 0:01:08]}  Rxd4 {[%clk 0:01:17]} 36. Rxd4 {[%clk 0:01:05]}  Qxd4 {[%clk 0:01:14]} 37. Qe6+ {[%clk 0:00:55]} 1-0


[Site "https://www.chess.com"]

[Event "Titled Tuesday Blitz August 15 Late 2023"]
[White "Paravyan, David"]
[Black "Matinian, Nikita"]
[WhiteFideId "4194985"]
[BlackFideId "24129100"]
[WhiteElo "2972"]
[BlackElo "2717"]
[Result "1/2-1/2"]
[Round "3"]
[TimeControl "180+1"]
[Date "2023.08.15"]
[WhiteClock "0:00:18"]
[BlackClock "0:00:13"]
[Board "16"]

1. Nf3 {[%clk 0:03:00]}  Nf6 {[%clk 0:02:49]} 2. g3 {[%clk 0:03:00]}  g6 {[%clk 0:02:47]} 3. Bg2 {[%clk 0:03:00]}  Bg7 {[%clk 0:02:48]} 4. O-O {[%clk 0:03:01]}  O-O {[%clk 0:02:49]} 5. d4 {[%clk 0:03:01]}  d6 {[%clk 0:02:48]} 6. c4 {[%clk 0:03:01]}  c6 {[%clk 0:02:49]} 7. Nc3 {[%clk 0:03:00]}  Bf5 {[%clk 0:02:49]} 8. a3 {[%clk 0:02:59]}  Ne4 {[%clk 0:02:47]} 9. Nh4 {[%clk 0:02:53]}  Nxc3 {[%clk 0:02:45]} 10. bxc3 {[%clk 0:02:54]}  Be6 {[%clk 0:02:43]} 11. Qd3 {[%clk 0:02:54]}  Qa5 {[%clk 0:02:39]} 12. Bd2 {[%clk 0:02:48]}  Qa4 {[%clk 0:02:39]} 13. d5 {[%clk 0:02:48]}  Bd7 {[%clk 0:02:24]} 14. Rfb1 {[%clk 0:02:38]}  Na6 {[%clk 0:02:22]} 15. Be3 {[%clk 0:02:39]}  b6 {[%clk 0:02:04]} 16. Bd4 {[%clk 0:02:12]}  Rac8 {[%clk 0:01:38]} 17. f4 {[%clk 0:01:53]}  cxd5 {[%clk 0:01:34]} 18. Bxd5 {[%clk 0:01:54]}  e5 {[%clk 0:01:26]} 19. fxe5 {[%clk 0:01:43]}  dxe5 {[%clk 0:01:27]} 20. Bf2 {[%clk 0:01:43]}  Nc5 {[%clk 0:01:15]} 21. Bxc5 {[%clk 0:01:43]}  Rxc5 {[%clk 0:01:15]} 22. Rf1 {[%clk 0:01:43]}  Be8 {[%clk 0:00:59]} 23. Nf3 {[%clk 0:01:42]}  Qd7 {[%clk 0:00:48]} 24. Ng5 {[%clk 0:01:42]}  Qe7 {[%clk 0:00:47]} 25. h4 {[%clk 0:01:40]}  Kh8 {[%clk 0:00:32]} 26. Rf2 {[%clk 0:01:39]}  h6 {[%clk 0:00:31]} 27. Ne4 {[%clk 0:01:38]}  Rc7 {[%clk 0:00:31]} 28. Nd2 {[%clk 0:01:25]}  f5 {[%clk 0:00:30]} 29. e4 {[%clk 0:01:26]}  f4 {[%clk 0:00:30]} 30. Raf1 {[%clk 0:01:23]}  Bd7 {[%clk 0:00:22]} 31. gxf4 {[%clk 0:01:23]}  Qxh4 {[%clk 0:00:14]} 32. fxe5 {[%clk 0:01:17]}  Rxf2 {[%clk 0:00:15]} 33. Rxf2 {[%clk 0:01:17]}  Bxe5 {[%clk 0:00:15]} 34. Rf8+ {[%clk 0:01:16]}  Kg7 {[%clk 0:00:12]} 35. Rf7+ {[%clk 0:01:16]}  Kh8 {[%clk 0:00:12]} 36. Rf8+ {[%clk 0:00:18]}  Kh7 {[%clk 0:00:12]} 37. Rf7+ {[%clk 0:00:18]}  Kh8 {[%clk 0:00:13]} 38. Rf8+ {[%clk 0:00:18]} 1/2-1/2


[Site "https://www.chess.com"]

[Event "Titled Tuesday Blitz August 15 Late 2023"]
[White "Dourerassou, Jonathan"]
[Black "Svane, Rasmus"]
[WhiteFideId "628050"]
[BlackFideId "4657101"]
[WhiteElo "2706"]
[BlackElo "2961"]
[Result "0-1"]
[Round "3"]
[TimeControl "180+1"]
[Date "2023.08.15"]
[WhiteClock "0:00:17"]
[BlackClock "0:00:43"]
[Board "19"]

1. d4 {[%clk 0:03:00]}  d5 {[%clk 0:02:58]} 2. Nc3 {[%clk 0:03:00]}  Nf6 {[%clk 0:02:57]} 3. Bf4 {[%clk 0:02:59]}  c5 {[%clk 0:02:58]} 4. e3 {[%clk 0:02:59]}  cxd4 {[%clk 0:02:58]} 5. exd4 {[%clk 0:02:58]}  a6 {[%clk 0:02:58]} 6. Nf3 {[%clk 0:02:57]}  Nc6 {[%clk 0:02:59]} 7. Bd3 {[%clk 0:02:57]}  Bg4 {[%clk 0:02:58]} 8. Ne2 {[%clk 0:02:54]}  Bxf3 {[%clk 0:02:57]} 9. gxf3 {[%clk 0:02:55]}  e6 {[%clk 0:02:58]} 10. c3 {[%clk 0:02:55]}  Bd6 {[%clk 0:02:58]} 11. Bg3 {[%clk 0:02:55]}  Qc7 {[%clk 0:02:55]} 12. Qd2 {[%clk 0:02:53]}  O-O-O {[%clk 0:02:52]} 13. O-O-O {[%clk 0:02:51]}  Rhe8 {[%clk 0:02:44]} 14. Kb1 {[%clk 0:02:50]}  Kb8 {[%clk 0:02:44]} 15. Rc1 {[%clk 0:02:49]}  Ka7 {[%clk 0:02:44]} 16. Qg5 {[%clk 0:02:48]}  Rg8 {[%clk 0:02:41]} 17. Rhg1 {[%clk 0:02:47]}  h6 {[%clk 0:02:41]} 18. Qd2 {[%clk 0:02:45]}  Na5 {[%clk 0:02:36]} 19. b3 {[%clk 0:02:35]}  Nc6 {[%clk 0:02:30]} 20. c4 {[%clk 0:02:32]}  dxc4 {[%clk 0:02:24]} 21. Rxc4 {[%clk 0:02:31]}  Qb6 {[%clk 0:02:23]} 22. Rgc1 {[%clk 0:02:15]}  Bxg3 {[%clk 0:02:09]} 23. Rxc6 {[%clk 0:02:09]}  bxc6 {[%clk 0:02:07]} 24. hxg3 {[%clk 0:02:09]}  Rd6 {[%clk 0:02:01]} 25. Rc4 {[%clk 0:02:08]}  Nd5 {[%clk 0:02:00]} 26. Ra4 {[%clk 0:02:02]}  Nc7 {[%clk 0:01:53]} 27. Qf4 {[%clk 0:02:01]}  Rd7 {[%clk 0:01:48]} 28. Nc3 {[%clk 0:01:57]}  Rgd8 {[%clk 0:01:44]} 29. Kc2 {[%clk 0:01:35]}  Nb5 {[%clk 0:01:35]} 30. d5 {[%clk 0:01:16]}  exd5 {[%clk 0:01:23]} 31. Qd2 {[%clk 0:01:04]}  Qc5 {[%clk 0:01:17]} 32. Kb2 {[%clk 0:00:55]}  Qxc3+ {[%clk 0:01:14]} 33. Qxc3 {[%clk 0:00:54]}  Nxc3 {[%clk 0:01:15]} 34. Rxa6+ {[%clk 0:00:54]}  Kb7 {[%clk 0:01:15]} 35. Kxc3 {[%clk 0:00:55]}  Ra8 {[%clk 0:01:13]} 36. Rxa8 {[%clk 0:00:54]}  Kxa8 {[%clk 0:01:13]} 37. Kd4 {[%clk 0:00:54]}  Kb7 {[%clk 0:01:14]} 38. a4 {[%clk 0:00:53]}  Re7 {[%clk 0:01:09]} 39. b4 {[%clk 0:00:51]}  h5 {[%clk 0:01:07]} 40. b5 {[%clk 0:00:50]}  g5 {[%clk 0:01:04]} 41. Kc5 {[%clk 0:00:48]}  cxb5 {[%clk 0:01:03]} 42. Bxb5 {[%clk 0:00:43]}  h4 {[%clk 0:01:02]} 43. Bc6+ {[%clk 0:00:29]}  Ka7 {[%clk 0:00:45]} 44. Bxd5 {[%clk 0:00:30]}  h3 {[%clk 0:00:43]} 45. f4 {[%clk 0:00:27]}  gxf4 {[%clk 0:00:44]} 46. gxf4 {[%clk 0:00:21]}  h2 {[%clk 0:00:43]} 47. f5 {[%clk 0:00:17]}  Re5 {[%clk 0:00:43]} 0-1


[Site "https://www.chess.com"]

[Event "Titled Tuesday Blitz August 15 Late 2023"]
[White "Papasimakopoulos, Alexandros"]
[Black "Elsa167"]
[WhiteFideId "4244125"]
[WhiteElo "2705"]
[BlackElo "2949"]
[Result "0-1"]
[Round "3"]
[TimeControl "180+1"]
[Date "2023.08.15"]
[WhiteClock "0:01:36"]
[BlackClock "0:01:47"]
[Board "20"]

1. d4 {[%clk 0:03:00]}  Nf6 {[%clk 0:03:00]} 2. c4 {[%clk 0:03:01]}  e6 {[%clk 0:03:00]} 3. Nc3 {[%clk 0:03:01]}  d5 {[%clk 0:03:00]} 4. cxd5 {[%clk 0:03:01]}  exd5 {[%clk 0:03:01]} 5. Bg5 {[%clk 0:03:01]}  Be7 {[%clk 0:03:01]} 6. e3 {[%clk 0:03:02]}  O-O {[%clk 0:03:02]} 7. Bd3 {[%clk 0:03:02]}  Re8 {[%clk 0:03:02]} 8. Qc2 {[%clk 0:03:01]}  h6 {[%clk 0:03:01]} 9. Bh4 {[%clk 0:03:00]}  c5 {[%clk 0:03:02]} 10. Nge2 {[%clk 0:02:58]}  Nc6 {[%clk 0:03:01]} 11. a3 {[%clk 0:02:55]}  cxd4 {[%clk 0:02:58]} 12. exd4 {[%clk 0:02:55]}  Ng4 {[%clk 0:02:38]} 13. Bxe7 {[%clk 0:02:45]}  Qxe7 {[%clk 0:02:38]} 14. h3 {[%clk 0:02:45]}  Nf6 {[%clk 0:02:24]} 15. O-O {[%clk 0:02:43]}  a6 {[%clk 0:02:20]} 16. Rfe1 {[%clk 0:02:25]}  Qd6 {[%clk 0:02:20]} 17. Qd2 {[%clk 0:02:23]}  Bd7 {[%clk 0:02:18]} 18. Qf4 {[%clk 0:02:22]}  Qxf4 {[%clk 0:02:18]} 19. Nxf4 {[%clk 0:02:23]}  Nxd4 {[%clk 0:02:18]} 20. Nfxd5 {[%clk 0:02:21]}  Nxd5 {[%clk 0:02:17]} 21. Nxd5 {[%clk 0:02:22]}  Rxe1+ {[%clk 0:02:03]} 22. Rxe1 {[%clk 0:02:22]}  Rd8 {[%clk 0:02:01]} 23. Re4 {[%clk 0:02:13]}  Ne6 {[%clk 0:01:51]} 24. Bc2 {[%clk 0:02:03]}  Kf8 {[%clk 0:01:47]} 25. Nc3 {[%clk 0:02:00]}  Bc6 {[%clk 0:01:47]} 26. Re2 {[%clk 0:01:59]}  Nd4 {[%clk 0:01:47]} 27. Rd2 {[%clk 0:01:36]}  Nf3+ {[%clk 0:01:47]} 0-1


[Site "https://www.chess.com"]

[Event "Titled Tuesday Blitz August 15 Late 2023"]
[White "Keymer, Vincent"]
[Black "Volovich, Vasily"]
[WhiteFideId "12940690"]
[BlackFideId "34169676"]
[WhiteElo "2939"]
[BlackElo "2703"]
[Result "1-0"]
[Round "3"]
[TimeControl "180+1"]
[Date "2023.08.15"]
[WhiteClock "0:01:13"]
[BlackClock "0:00:01"]
[Board "21"]

1. a3 {[%clk 0:03:00]}  Nf6 {[%clk 0:02:55]} 2. Nf3 {[%clk 0:03:00]}  g6 {[%clk 0:02:55]} 3. b4 {[%clk 0:03:00]}  Bg7 {[%clk 0:02:54]} 4. Bb2 {[%clk 0:03:01]}  O-O {[%clk 0:02:54]} 5. c4 {[%clk 0:03:01]}  b6 {[%clk 0:02:51]} 6. g3 {[%clk 0:03:00]}  Bb7 {[%clk 0:02:51]} 7. Bg2 {[%clk 0:03:01]}  c5 {[%clk 0:02:51]} 8. O-O {[%clk 0:02:59]}  Nc6 {[%clk 0:02:50]} 9. b5 {[%clk 0:02:40]}  Na5 {[%clk 0:02:50]} 10. d3 {[%clk 0:02:41]}  d5 {[%clk 0:02:49]} 11. Nbd2 {[%clk 0:02:41]}  a6 {[%clk 0:02:39]} 12. a4 {[%clk 0:02:40]}  axb5 {[%clk 0:02:35]} 13. axb5 {[%clk 0:02:41]}  Re8 {[%clk 0:02:25]} 14. Qc2 {[%clk 0:02:38]}  d4 {[%clk 0:02:15]} 15. Rfe1 {[%clk 0:02:31]}  e5 {[%clk 0:02:02]} 16. e4 {[%clk 0:02:22]}  dxe3 {[%clk 0:01:40]} 17. Rxe3 {[%clk 0:02:20]}  Ng4 {[%clk 0:01:40]} 18. Ree1 {[%clk 0:02:17]}  Qc7 {[%clk 0:01:33]} 19. Bc3 {[%clk 0:02:08]}  Rad8 {[%clk 0:01:23]} 20. Ra3 {[%clk 0:01:52]}  Rd7 {[%clk 0:01:05]} 21. h3 {[%clk 0:01:49]}  Nh6 {[%clk 0:01:03]} 22. Bxa5 {[%clk 0:01:36]}  bxa5 {[%clk 0:01:04]} 23. Nb3 {[%clk 0:01:37]}  Nf5 {[%clk 0:00:57]} 24. Nxa5 {[%clk 0:01:35]}  Bxf3 {[%clk 0:00:57]} 25. Bxf3 {[%clk 0:01:33]}  Nd4 {[%clk 0:00:57]} 26. Qd1 {[%clk 0:01:34]}  f5 {[%clk 0:00:24]} 27. Bc6 {[%clk 0:01:21]}  Nxc6 {[%clk 0:00:19]} 28. Nxc6 {[%clk 0:01:22]}  Qd6 {[%clk 0:00:17]} 29. Qf3 {[%clk 0:01:20]}  h5 {[%clk 0:00:12]} 30. h4 {[%clk 0:01:19]}  Rf7 {[%clk 0:00:10]} 31. Qd5 {[%clk 0:01:17]}  Qxd5 {[%clk 0:00:10]} 32. cxd5 {[%clk 0:01:18]}  Rd7 {[%clk 0:00:10]} 33. b6 {[%clk 0:01:15]}  e4 {[%clk 0:00:06]} 34. dxe4 {[%clk 0:01:15]}  fxe4 {[%clk 0:00:07]} 35. Rb1 {[%clk 0:01:14]}  Bd4 {[%clk 0:00:03]} 36. b7 {[%clk 0:01:13]}  e3 {[%clk 0:00:02]} 37. fxe3 {[%clk 0:01:13]}  Bxe3+ {[%clk 0:00:01]} 38. Rxe3 {[%clk 0:01:13]} 1-0


[Site "https://www.chess.com"]

[Event "Titled Tuesday Blitz August 15 Late 2023"]
[White "Mikhailov, Viacheslav"]
[Black "Dardha, Daniel"]
[WhiteFideId "4187369"]
[BlackFideId "240990"]
[WhiteElo "2667"]
[BlackElo "2927"]
[Result "1-0"]
[Round "3"]
[TimeControl "180+1"]
[Date "2023.08.15"]
[WhiteClock "0:00:23"]
[BlackClock "0:00:19"]
[Board "23"]

1. Nf3 {[%clk 0:02:38]}  d5 {[%clk 0:02:59]} 2. g3 {[%clk 0:02:38]}  Nd7 {[%clk 0:02:58]} 3. d4 {[%clk 0:02:38]}  Nb6 {[%clk 0:02:59]} 4. Bg2 {[%clk 0:02:39]}  Bf5 {[%clk 0:02:59]} 5. O-O {[%clk 0:02:39]}  e6 {[%clk 0:02:59]} 6. Bf4 {[%clk 0:02:37]}  Nf6 {[%clk 0:02:58]} 7. Nbd2 {[%clk 0:02:37]}  Be7 {[%clk 0:02:56]} 8. c4 {[%clk 0:02:32]}  O-O {[%clk 0:02:54]} 9. Qb3 {[%clk 0:02:29]}  a5 {[%clk 0:02:51]} 10. c5 {[%clk 0:02:15]}  a4 {[%clk 0:02:50]} 11. Qb5 {[%clk 0:02:10]}  Ra6 {[%clk 0:02:23]} 12. cxb6 {[%clk 0:02:04]}  c6 {[%clk 0:02:24]} 13. Qxa6 {[%clk 0:01:56]}  bxa6 {[%clk 0:02:24]} 14. Bc7 {[%clk 0:01:52]}  Qc8 {[%clk 0:02:21]} 15. Ne5 {[%clk 0:01:51]}  Ne8 {[%clk 0:01:54]} 16. Nxc6 {[%clk 0:01:49]}  Bf6 {[%clk 0:01:49]} 17. Rfc1 {[%clk 0:01:37]}  Nxc7 {[%clk 0:01:48]} 18. Na7 {[%clk 0:01:37]}  Qb7 {[%clk 0:01:32]} 19. bxc7 {[%clk 0:01:37]}  h6 {[%clk 0:01:16]} 20. c8=Q {[%clk 0:01:34]}  Rxc8 {[%clk 0:01:16]} 21. Nxc8 {[%clk 0:01:33]}  Bxd4 {[%clk 0:00:53]} 22. Nd6 {[%clk 0:01:32]}  Qb6 {[%clk 0:00:44]} 23. Nxf5 {[%clk 0:01:30]}  Bxf2+ {[%clk 0:00:42]} 24. Kh1 {[%clk 0:01:28]}  exf5 {[%clk 0:00:43]} 25. b3 {[%clk 0:00:49]}  Be3 {[%clk 0:00:40]} 26. Rc8+ {[%clk 0:00:45]}  Kh7 {[%clk 0:00:39]} 27. Nf3 {[%clk 0:00:45]}  axb3 {[%clk 0:00:37]} 28. axb3 {[%clk 0:00:46]}  Qxb3 {[%clk 0:00:37]} 29. Rc7 {[%clk 0:00:40]}  Qb2 {[%clk 0:00:35]} 30. Rf1 {[%clk 0:00:33]}  Qf6 {[%clk 0:00:34]} 31. Nh4 {[%clk 0:00:30]}  g6 {[%clk 0:00:34]} 32. Bxd5 {[%clk 0:00:30]}  Qd6 {[%clk 0:00:26]} 33. Rxf7+ {[%clk 0:00:30]}  Kh8 {[%clk 0:00:25]} 34. Rd1 {[%clk 0:00:29]}  Bg5 {[%clk 0:00:23]} 35. Rh7+ {[%clk 0:00:25]}  Kxh7 {[%clk 0:00:22]} 36. Bg8+ {[%clk 0:00:25]}  Kxg8 {[%clk 0:00:21]} 37. Rxd6 {[%clk 0:00:26]}  a5 {[%clk 0:00:22]} 38. Rxg6+ {[%clk 0:00:25]}  Kf7 {[%clk 0:00:22]} 39. Ra6 {[%clk 0:00:26]}  Bd2 {[%clk 0:00:20]} 40. Nxf5 {[%clk 0:00:23]}  Bb4 {[%clk 0:00:21]} 41. e4 {[%clk 0:00:23]}  Ke8 {[%clk 0:00:20]} 42. Kg2 {[%clk 0:00:22]}  Kd7 {[%clk 0:00:21]} 43. e5 {[%clk 0:00:22]}  Kc7 {[%clk 0:00:22]} 44. e6 {[%clk 0:00:22]}  Kc8 {[%clk 0:00:22]} 45. e7 {[%clk 0:00:18]}  Bxe7 {[%clk 0:00:17]} 46. Nxe7+ {[%clk 0:00:19]}  Kc7 {[%clk 0:00:17]} 47. Rxa5 {[%clk 0:00:19]}  h5 {[%clk 0:00:18]} 48. Rxh5 {[%clk 0:00:19]}  Kd6 {[%clk 0:00:19]} 49. Rf5 {[%clk 0:00:20]}  Ke6 {[%clk 0:00:20]} 50. g4 {[%clk 0:00:20]}  Kd7 {[%clk 0:00:20]} 51. h4 {[%clk 0:00:20]}  Ke8 {[%clk 0:00:21]} 52. h5 {[%clk 0:00:21]}  Kd7 {[%clk 0:00:22]} 53. h6 {[%clk 0:00:21]}  Ke6 {[%clk 0:00:23]} 54. h7 {[%clk 0:00:22]}  Kd6 {[%clk 0:00:24]} 55. h8=Q {[%clk 0:00:22]}  Kd7 {[%clk 0:00:24]} 56. Qc8+ {[%clk 0:00:22]}  Kd6 {[%clk 0:00:24]} 57. Qc6+ {[%clk 0:00:22]}  Kxe7 {[%clk 0:00:24]} 58. Re5+ {[%clk 0:00:23]}  Kf7 {[%clk 0:00:19]} 59. Rd5 {[%clk 0:00:23]} 1-0


[Site "https://www.chess.com"]

[Event "Titled Tuesday Blitz August 15 Late 2023"]
[White "Rasulov, Vugar"]
[Black "Hansen, Torbjorn Ringdal"]
[WhiteFideId "13402390"]
[BlackFideId "1501720"]
[WhiteElo "2890"]
[BlackElo "2637"]
[Result "1/2-1/2"]
[Round "3"]
[TimeControl "180+1"]
[Date "2023.08.15"]
[WhiteClock "0:00:59"]
[BlackClock "0:01:00"]
[Board "25"]

1. c4 {[%clk 0:03:00]}  c5 {[%clk 0:02:58]} 2. Nc3 {[%clk 0:03:01]}  Nc6 {[%clk 0:02:58]} 3. g3 {[%clk 0:03:01]}  g6 {[%clk 0:02:59]} 4. Bg2 {[%clk 0:03:02]}  Bg7 {[%clk 0:02:59]} 5. d3 {[%clk 0:03:00]}  d6 {[%clk 0:02:59]} 6. Bd2 {[%clk 0:03:00]}  Nf6 {[%clk 0:02:53]} 7. a3 {[%clk 0:03:00]}  O-O {[%clk 0:02:37]} 8. Rb1 {[%clk 0:03:00]}  a5 {[%clk 0:02:34]} 9. Nh3 {[%clk 0:02:56]}  Bd7 {[%clk 0:02:28]} 10. O-O {[%clk 0:02:56]}  h6 {[%clk 0:02:18]} 11. Nf4 {[%clk 0:02:55]}  Kh7 {[%clk 0:02:18]} 12. h4 {[%clk 0:02:50]}  h5 {[%clk 0:02:14]} 13. Ne4 {[%clk 0:02:42]}  Rb8 {[%clk 0:02:05]} 14. b4 {[%clk 0:02:38]}  axb4 {[%clk 0:02:04]} 15. axb4 {[%clk 0:02:39]}  Nxb4 {[%clk 0:02:02]} 16. Bxb4 {[%clk 0:02:39]}  cxb4 {[%clk 0:02:03]} 17. Rxb4 {[%clk 0:02:36]}  Bc6 {[%clk 0:02:01]} 18. Nxf6+ {[%clk 0:02:24]}  Bxf6 {[%clk 0:02:02]} 19. e4 {[%clk 0:02:24]}  e6 {[%clk 0:01:57]} 20. Qe2 {[%clk 0:02:17]}  Qa5 {[%clk 0:01:55]} 21. Rfb1 {[%clk 0:02:13]}  Bg7 {[%clk 0:01:51]} 22. Kh2 {[%clk 0:02:03]}  Qc5 {[%clk 0:01:48]} 23. Nh3 {[%clk 0:01:57]}  Kg8 {[%clk 0:01:44]} 24. f4 {[%clk 0:01:55]}  Ra8 {[%clk 0:01:43]} 25. Ng5 {[%clk 0:01:48]}  Ra3 {[%clk 0:01:40]} 26. Rxb7 {[%clk 0:01:30]}  Bxb7 {[%clk 0:01:38]} 27. Rxb7 {[%clk 0:01:31]}  Qd4 {[%clk 0:01:21]} 28. f5 {[%clk 0:01:30]}  exf5 {[%clk 0:01:12]} 29. exf5 {[%clk 0:01:29]}  Qxd3 {[%clk 0:01:12]} 30. Qxd3 {[%clk 0:01:22]}  Rxd3 {[%clk 0:01:13]} 31. fxg6 {[%clk 0:01:20]}  fxg6 {[%clk 0:01:14]} 32. Bd5+ {[%clk 0:01:10]}  Kh8 {[%clk 0:01:06]} 33. Nf7+ {[%clk 0:01:06]}  Rxf7 {[%clk 0:01:06]} 34. Rxf7 {[%clk 0:01:00]}  Be5 {[%clk 0:01:04]} 35. Rf3 {[%clk 0:01:00]}  Rxf3 {[%clk 0:01:03]} 36. Bxf3 {[%clk 0:00:59]}  Kg7 {[%clk 0:01:00]} 1/2-1/2


[Site "https://www.chess.com"]

[Event "Titled Tuesday Blitz August 15 Late 2023"]
[White "Ehlvest, Jaan"]
[Black "Galchenko, Matvey"]
[WhiteFideId "4500016"]
[BlackFideId "24175480"]
[WhiteElo "2635"]
[BlackElo "2876"]
[Result "1-0"]
[Round "3"]
[TimeControl "180+1"]
[Date "2023.08.15"]
[WhiteClock "0:00:11"]
[BlackClock "0:00:08"]
[Board "26"]

1. e4 {[%clk 0:02:55]}  e6 {[%clk 0:02:58]} 2. d4 {[%clk 0:02:53]}  d5 {[%clk 0:02:58]} 3. exd5 {[%clk 0:02:52]}  exd5 {[%clk 0:02:59]} 4. Nf3 {[%clk 0:02:51]}  Nf6 {[%clk 0:03:00]} 5. Bd3 {[%clk 0:02:51]}  c5 {[%clk 0:02:59]} 6. O-O {[%clk 0:02:48]}  Nc6 {[%clk 0:02:59]} 7. Re1+ {[%clk 0:02:47]}  Be7 {[%clk 0:02:58]} 8. dxc5 {[%clk 0:02:46]}  O-O {[%clk 0:02:59]} 9. h3 {[%clk 0:02:30]}  Bxc5 {[%clk 0:02:57]} 10. a3 {[%clk 0:02:30]}  Re8 {[%clk 0:02:52]} 11. Bg5 {[%clk 0:02:21]}  Rxe1+ {[%clk 0:02:39]} 12. Qxe1 {[%clk 0:02:20]}  Be6 {[%clk 0:02:31]} 13. Nc3 {[%clk 0:02:17]}  h6 {[%clk 0:02:28]} 14. Bh4 {[%clk 0:02:16]}  g5 {[%clk 0:02:26]} 15. Bg3 {[%clk 0:02:11]}  Nh5 {[%clk 0:02:25]} 16. Bh2 {[%clk 0:01:53]}  Qf6 {[%clk 0:02:18]} 17. b4 {[%clk 0:01:35]}  Bb6 {[%clk 0:02:14]} 18. Na4 {[%clk 0:01:26]}  Bxh3 {[%clk 0:02:06]} 19. Nxb6 {[%clk 0:01:23]}  axb6 {[%clk 0:02:07]} 20. b5 {[%clk 0:01:10]}  g4 {[%clk 0:01:36]} 21. bxc6 {[%clk 0:00:55]}  gxf3 {[%clk 0:01:35]} 22. gxh3 {[%clk 0:00:54]}  Qg5+ {[%clk 0:01:21]} 23. Bg3 {[%clk 0:00:53]}  bxc6 {[%clk 0:01:16]} 24. Qe5 {[%clk 0:00:47]}  Qxe5 {[%clk 0:01:07]} 25. Bxe5 {[%clk 0:00:46]}  Re8 {[%clk 0:01:08]} 26. Bc7 {[%clk 0:00:43]}  b5 {[%clk 0:01:01]} 27. Kf1 {[%clk 0:00:37]}  Nf6 {[%clk 0:00:51]} 28. Re1 {[%clk 0:00:35]}  Ra8 {[%clk 0:00:49]} 29. Bd6 {[%clk 0:00:34]}  Ra4 {[%clk 0:00:48]} 30. Bb4 {[%clk 0:00:30]}  Ra8 {[%clk 0:00:43]} 31. Re3 {[%clk 0:00:30]}  Nd7 {[%clk 0:00:42]} 32. Bf5 {[%clk 0:00:28]}  Nb6 {[%clk 0:00:37]} 33. Rxf3 {[%clk 0:00:27]}  Nc4 {[%clk 0:00:37]} 34. Bd3 {[%clk 0:00:25]}  Ne5 {[%clk 0:00:27]} 35. Re3 {[%clk 0:00:25]}  Nd7 {[%clk 0:00:28]} 36. Bf5 {[%clk 0:00:24]}  Nb6 {[%clk 0:00:29]} 37. Re7 {[%clk 0:00:23]}  Nc4 {[%clk 0:00:26]} 38. Rc7 {[%clk 0:00:22]}  Ra6 {[%clk 0:00:25]} 39. Bd7 {[%clk 0:00:21]}  Ne5 {[%clk 0:00:22]} 40. Be8 {[%clk 0:00:20]}  c5 {[%clk 0:00:06]} 41. Rxc5 {[%clk 0:00:18]}  Rf6 {[%clk 0:00:05]} 42. Rxd5 {[%clk 0:00:17]}  Nc4 {[%clk 0:00:05]} 43. Rd8 {[%clk 0:00:13]}  Kh7 {[%clk 0:00:04]} 44. Bxb5 {[%clk 0:00:10]}  Ne5 {[%clk 0:00:04]} 45. Ke2 {[%clk 0:00:10]}  Re6 {[%clk 0:00:04]} 46. Bd3+ {[%clk 0:00:11]}  Kg7 {[%clk 0:00:03]} 47. Bc3 {[%clk 0:00:10]}  f6 {[%clk 0:00:04]} 48. Kd1 {[%clk 0:00:09]}  Nf7 {[%clk 0:00:04]} 49. Bc4 {[%clk 0:00:08]}  Nxd8 {[%clk 0:00:04]} 50. Bxe6 {[%clk 0:00:08]}  Nxe6 {[%clk 0:00:04]} 51. a4 {[%clk 0:00:08]}  Nc5 {[%clk 0:00:05]} 52. a5 {[%clk 0:00:07]}  Kf7 {[%clk 0:00:05]} 53. Bb4 {[%clk 0:00:07]}  Na6 {[%clk 0:00:06]} 54. Ba3 {[%clk 0:00:07]}  Ke6 {[%clk 0:00:07]} 55. Ke2 {[%clk 0:00:08]}  Ke5 {[%clk 0:00:07]} 56. Ke3 {[%clk 0:00:08]}  Kd5 {[%clk 0:00:07]} 57. Kf4 {[%clk 0:00:07]}  Ke6 {[%clk 0:00:08]} 58. Kg4 {[%clk 0:00:07]}  Kf7 {[%clk 0:00:07]} 59. Kh5 {[%clk 0:00:08]}  Kg7 {[%clk 0:00:08]} 60. Bd6 {[%clk 0:00:08]}  f5 {[%clk 0:00:07]} 61. f4 {[%clk 0:00:08]}  Kh7 {[%clk 0:00:07]} 62. c4 {[%clk 0:00:09]}  Kg7 {[%clk 0:00:07]} 63. c5 {[%clk 0:00:09]}  Nb4 {[%clk 0:00:08]} 64. Be5+ {[%clk 0:00:07]}  Kh7 {[%clk 0:00:08]} 65. Bc3 {[%clk 0:00:07]}  Nc6 {[%clk 0:00:08]} 66. a6 {[%clk 0:00:07]}  Kg8 {[%clk 0:00:09]} 67. Be5 {[%clk 0:00:07]}  Kf7 {[%clk 0:00:09]} 68. Bb8 {[%clk 0:00:07]}  Nxb8 {[%clk 0:00:01]} 69. a7 {[%clk 0:00:07]}  Nd7 {[%clk 0:00:02]} 70. a8=Q {[%clk 0:00:07]}  Nf6+ {[%clk 0:00:03]} 71. Kxh6 {[%clk 0:00:05]}  Ng8+ {[%clk 0:00:03]} 72. Kg5 {[%clk 0:00:06]}  Ne7 {[%clk 0:00:03]} 73. Qb7 {[%clk 0:00:07]}  Ke6 {[%clk 0:00:03]} 74. Qxe7+ {[%clk 0:00:07]}  Kxe7 {[%clk 0:00:04]} 75. Kxf5 {[%clk 0:00:07]}  Kd7 {[%clk 0:00:04]} 76. h4 {[%clk 0:00:08]}  Kc6 {[%clk 0:00:05]} 77. h5 {[%clk 0:00:09]}  Kd7 {[%clk 0:00:06]} 78. h6 {[%clk 0:00:10]}  Ke7 {[%clk 0:00:07]} 79. h7 {[%clk 0:00:10]}  Kf7 {[%clk 0:00:08]} 80. h8=Q {[%clk 0:00:10]}  Ke7 {[%clk 0:00:08]} 81. Qg7+ {[%clk 0:00:10]}  Ke8 {[%clk 0:00:08]} 82. Ke6 {[%clk 0:00:11]} 1-0


[Site "https://www.chess.com"]